bitfinex-derivatives/quotes_ETHF0:USTF0_20241007
["timestamp","ask_amount","ask_price","bid_price","bid_amount"]
[1728259900525,3.5949,2437.9,2437.7,0.32818]
[1728259900824,4.0163,2437.9,2437.7,0.32818]
[1728259901021,4.34446,2437.9,2437.6,0.3282]
[1728259902524,3.2,2437.7,2437.5,0.32821]
[1728259902822,3.2,2437.7,2437.1,4.19]
[1728259903032,4.0241,2437.9,2437.0,3.2078]
[1728259903033,0.32824,2437.4,2437.0,4.0104]
[1728259903219,0.72765,2437.3,2437.1,0.32826]
[1728259903618,0.72765,2437.3,2437.2,0.32826]
[1728259903619,0.3994,2437.3,2437.2,0.32826]
[1728259905025,0.4118,2437.4,2437.0,4.0104]
[1728259905321,0.74432,2437.5,2437.3,0.32824]
[1728259906024,0.4161,2437.5,2437.0,7.2104]
[1728259906216,0.4026,2437.6,2437.5,0.32822]
[1728259906416,0.73307,2437.9,2437.7,0.32819]
[1728259906629,0.4049,2437.9,2437.4,0.8076]
[1728259906822,0.4049,2437.9,2437.5,0.4004]
[1728259907029,0.4049,2437.9,2437.7,0.32818]
[1728259907231,0.73306,2437.9,2437.7,0.32818]
[1728259908017,0.4049,2437.9,2437.8,0.32818]
[1728259908518,3.2078,2438.2,2437.8,4.1016]
[1728259908714,3.2078,2438.2,2437.7,3.2]
[1728259908715,4.35853,2438.2,2438.0,0.32814]
[1728259909217,4.0304,2438.2,2438.0,0.32814]
[1728259909414,4.35852,2438.2,2438.0,0.32814]
[1728259909620,4.0304,2438.2,2438.0,0.32814]
[1728259910623,4.0304,2438.2,2437.9,0.32816]
[1728259910624,4.35853,2438.2,2437.9,0.32816]
[1728259910827,0.32814,2438.1,2437.7,3.2078]
[1728259911126,4.0304,2438.2,2437.7,3.2078]
[1728259911322,0.32816,2438.0,2437.7,3.53598]
[1728259913726,0.32814,2438.1,2437.8,0.32817]
[1728259913931,0.32814,2438.1,2437.7,3.2078]
[1728259913932,0.32815,2438.0,2437.7,3.53598]
[1728259916029,0.32815,2438.0,2437.7,3.2078]
[1728259916234,0.32816,2437.9,2437.7,3.53598]
[1728259916433,0.32816,2438.0,2437.7,3.53598]
[1728259916618,0.32814,2438.1,2437.7,3.53598]
[1728259916819,0.32816,2438.0,2437.7,3.53598]
[1728259917228,3.2,2438.1,2437.7,3.2078]
[1728259917432,0.32817,2437.9,2437.7,3.2078]
[1728259917629,0.8084,2437.8,2437.7,3.2078]
[1728259917930,1.2332,2437.8,2437.7,3.2078]
[1728259918327,1.2332,2437.8,2437.5,0.4004]
[1728259918328,0.32819,2437.7,2437.5,0.32821]
[1728259918726,0.32822,2437.5,2437.3,3.53604]
[1728259918931,3.2,2437.7,2437.1,0.4238]
[1728259919133,0.32824,2437.3,2437.1,0.32826]
[1728259919432,3.52825,2437.3,2437.1,0.32827]
[1728259920027,3.2,2437.3,2437.1,0.32827]
[1728259920226,3.2,2437.3,2437.0,3.53608]
[1728259920429,3.52825,2437.3,2436.8,0.4145]
[1728259920626,0.8135,2437.4,2436.9,0.52733069]
[1728259920825,0.8135,2437.4,2436.8,0.4145]
[1728259920826,0.8135,2437.4,2437.1,0.32826]
[1728259921024,0.32825,2437.3,2437.1,0.32826]
[1728259921831,1.14174,2437.4,2437.1,0.32826]
[1728259922030,0.32825,2437.3,2437.1,0.32826]
[1728259922733,3.597,2437.3,2436.8,0.4145]
[1728259922936,3.597,2437.3,2436.8,0.32831]
[1728259922937,0.32828,2437.1,2436.8,0.32831]
[1728259923136,0.3888,2437.0,2436.9,0.52718889]
[1728259923329,0.71708,2437.0,2436.9,0.52718889]
[1728259923530,0.3888,2437.0,2436.9,0.52718889]
[1728259923734,0.3888,2437.0,2436.9,0.85548889]
[1728259923931,0.397,2437.3,2436.9,4.63038889]
[1728259924134,0.72525,2437.3,2436.9,0.52718889]
[1728259924336,3.2,2437.1,2436.9,0.52718889]
[1728259924533,0.71708,2437.0,2436.9,0.52718889]
[1728259924827,1.12108,2437.0,2436.9,0.52718889]
[1728259925025,4.896,2437.0,2436.9,0.52718889]
[1728259925430,0.7928,2437.0,2436.8,0.32831]
[1728259925831,0.7928,2437.0,2436.5,3.2078]
[1728259926127,0.7928,2437.0,2436.9,0.3283]
[1728259926334,0.397,2437.3,2436.9,0.3283]
[1728259926335,0.397,2437.3,2436.9,4.1032]
[1728259926544,3.6214,2437.4,2437.1,0.32826]
[1728259927342,0.4214,2437.4,2437.3,0.32824]
[1728259927543,0.4214,2437.4,2437.2,0.32825]
[1728259929242,3.2,2437.7,2437.2,0.32825]
[1728259929243,0.096,2437.9,2437.3,10.511]
[1728259929441,3.2078,2438.0,2437.8,0.32817]
[1728259929854,0.3857,2438.1,2437.8,0.32817]
[1728259930052,0.3857,2438.1,2437.9,0.32815]
[1728259930346,10.6308,2438.4,2438.0,7.3016]
[1728259930347,0.096,2438.4,2438.0,7.3016]
[1728259930551,0.096,2438.7,2438.3,3.2]
[1728259930751,3.9968,2438.9,2438.2,3.2078]
[1728259931053,3.9968,2438.9,2438.3,0.3281]
[1728259931054,0.32805,2438.8,2438.3,0.3281]
[1728259931248,0.32805,2438.8,2438.4,0.32809]
[1728259931552,3.9968,2438.9,2438.4,0.32809]
[1728259931849,4.32484,2438.9,2438.4,0.32809]
[1728259932752,4.32484,2438.9,2438.5,0.32808]
[1728259932952,0.7968,2438.9,2438.7,0.32805]
[1728259933145,0.7968,2438.9,2438.2,3.2078]
[1728259933146,0.7968,2438.9,2438.5,3.2]
[1728259933351,0.4111,2439.1,2438.9,0.32802]
[1728259933352,0.096,2439.1,2438.9,0.32802]
[1728259933553,0.096,2439.1,2438.7,3.2]
[1728259933554,0.096,2439.3,2438.8,3.2078]
[1728259933752,0.8143,2439.4,2439.0,0.32801]
[1728259933943,0.8143,2439.4,2438.9,3.2]
[1728259934152,0.8143,2439.4,2439.0,0.328]
[1728259934349,0.8143,2439.4,2439.1,0.328]
[1728259934646,0.8143,2439.4,2439.0,0.32801]
[1728259935049,0.8143,2439.4,2439.1,0.328]
[1728259935657,0.8143,2439.4,2438.8,3.6238]
[1728259935854,0.8143,2439.4,2439.3,0.32797]
[1728259936054,0.4089,2439.4,2439.1,6.4078]
[1728259936452,0.4089,2439.4,2439.2,0.32798]
[1728259939552,0.73686,2439.4,2439.1,6.73579]
[1728259940258,0.4089,2439.4,2439.2,0.32798]
[1728259940559,0.4838,2439.9,2439.3,3.2]
[1728259940862,0.32792,2439.7,2439.5,0.32795]
[1728259941058,0.32792,2439.7,2439.4,0.32795]
[1728259941554,0.32792,2439.7,2439.4,0.32796]
[1728259941763,0.32791,2439.8,2439.5,0.32795]
[1728259942257,0.32796,2439.5,2439.2,0.32799]
[1728259942458,0.3992,2439.4,2439.2,0.32799]
[1728259942962,0.72717,2439.4,2439.1,3.5358]
[1728259943157,1.14967,2439.4,2439.1,3.5358]
[1728259944063,0.32797,2439.3,2439.1,3.2078]
[1728259944257,8.1217,2439.4,2438.7,6.8276]
[1728259944559,0.32802,2439.0,2438.8,0.32804]
[1728259944764,0.32801,2439.1,2438.8,0.32804]
[1728259945059,0.32801,2439.1,2438.7,6.4078]
[1728259945356,0.32801,2439.1,2438.9,0.32802]
[1728259945863,0.328,2439.2,2438.9,0.32802]
[1728259946158,0.4142,2439.3,2438.9,0.32802]
[1728259946359,0.32799,2439.2,2438.7,6.4078]
[1728259946853,0.32799,2439.2,2438.9,0.32802]
[1728259947253,0.32799,2439.2,2438.7,6.4078]
[1728259947559,0.32799,2439.2,2438.9,0.32802]
[1728259947861,0.32799,2439.2,2439.0,0.32801]
[1728259948456,0.74218,2439.3,2439.0,0.32801]
[1728259949457,0.4142,2439.3,2439.1,0.328]
[1728259949656,0.74217,2439.3,2439.0,0.32801]
[1728259950062,0.32799,2439.2,2438.9,0.32802]
[1728259950263,0.74218,2439.3,2439.0,0.32801]
[1728259951967,0.4142,2439.3,2439.1,0.32799]
[1728259952565,4.5142,2439.3,2439.1,0.32799]
[1728259953263,4.5142,2439.3,2438.7,6.4078]
[1728259953463,0.32799,2439.2,2438.9,0.32802]
[1728259953665,0.4142,2439.3,2439.1,0.328]
[1728259953861,0.74217,2439.3,2439.0,0.32801]
[1728259954067,0.4142,2439.3,2438.8,0.32804]
[1728259954260,0.74218,2439.3,2439.0,0.328]
[1728259956074,0.4142,2439.3,2438.7,6.4078]
[1728259956262,0.4142,2439.3,2438.6,0.82015]
[1728259956263,0.8217,2439.4,2439.1,3.2]
[1728259956564,0.8217,2439.4,2439.3,0.32797]
[1728259957364,0.3912,2439.9,2439.3,3.2]
[1728259957672,0.32795,2439.5,2439.3,0.32797]
[1728259957868,0.32796,2439.5,2439.2,0.32798]
[1728259959572,0.32796,2439.5,2439.1,3.2]
[1728259959573,4.0226,2439.7,2439.3,0.32797]
[1728259959879,4.0226,2439.7,2439.1,3.2]
[1728259959880,0.32795,2439.5,2439.2,0.32798]
[1728259960067,0.32795,2439.5,2439.1,3.2]
[1728259960268,0.32795,2439.5,2439.2,0.32798]
[1728259960575,0.32795,2439.5,2439.1,3.2]
[1728259960874,0.32795,2439.5,2439.3,0.32797]
[1728259961168,0.32794,2439.6,2439.3,0.32797]
[1728259961566,4.0226,2439.7,2439.1,3.2]
[1728259961767,0.32795,2439.5,2439.2,0.32798]
[1728259961969,0.32794,2439.6,2439.3,0.32797]
[1728259962168,0.32795,2439.5,2439.2,0.32798]
[1728259962474,0.8148,2439.7,2439.1,3.2]
[1728259962669,0.3912,2439.9,2439.5,3.2]
[1728259962867,0.3912,2439.9,2439.8,3.52791]
[1728259963169,0.8296,2440.0,2439.8,3.52791]
[1728259963371,0.3279,2439.9,2439.6,3.94923]
[1728259963569,0.32791,2439.8,2439.6,0.4213]
[1728259963880,0.3279,2439.9,2439.6,0.74923]
[1728259965778,0.32789,2439.9,2439.7,0.32792]
[1728259966263,1.15749,2440.0,2439.7,0.32792]
[1728259966467,0.8296,2440.0,2439.7,0.32792]
[1728259966770,0.3279,2439.9,2439.6,3.94923]
[1728259967271,0.32791,2439.8,2439.6,0.32793]
[1728259967473,0.32793,2439.7,2439.4,0.32795]
[1728259968069,0.32793,2439.7,2439.5,0.32795]
[1728259969065,0.32791,2439.8,2439.3,3.2078]
[1728259969270,0.32791,2439.8,2439.6,0.32793]
[1728259969773,0.8296,2440.0,2439.5,0.32794]
[1728259969774,0.32793,2439.7,2439.5,0.32794]
[1728259970076,0.32792,2439.8,2439.5,0.32794]
[1728259970577,0.32792,2439.7,2439.5,0.32794]
[1728259970779,0.32789,2439.9,2439.6,0.32792]
[1728259970981,0.32789,2439.9,2439.7,0.32791]
[1728259971570,0.32789,2439.9,2439.7,0.72121]
[1728259971773,0.8296,2440.0,2439.7,0.72121]
[1728259972068,1.15749,2440.0,2439.7,0.72121]
[1728259973280,0.3279,2439.9,2439.7,1.11472]
[1728259973578,0.32791,2439.8,2439.6,6.73572]
[1728259973779,0.8296,2440.0,2439.9,0.32789]
[1728259973985,0.419,2440.0,2439.9,0.32789]
[1728259974276,0.419,2440.0,2439.8,3.2]
[1728259974277,0.419,2440.0,2439.8,3.5279]
[1728259974576,0.419,2440.0,2439.8,3.9212]
[1728259974781,0.74688,2440.0,2439.8,3.9212]
[1728259974979,0.74688,2440.0,2439.8,3.5933]
[1728259975481,0.74688,2440.0,2439.8,3.2]
[1728259976475,0.74688,2440.0,2439.8,3.52791]
[1728259977274,0.74688,2440.0,2439.8,3.2]
[1728259977871,0.32789,2439.9,2439.8,3.2]
[1728259978269,0.32789,2439.9,2439.7,0.3935]
[1728259978683,0.73009,2439.9,2439.6,6.96602]
[1728259978879,0.32792,2439.7,2439.6,3.4381]
[1728259979079,0.32792,2439.7,2439.6,3.96491347]
[1728259979283,0.32792,2439.7,2439.6,3.96503851]
[1728259982294,0.4022,2439.9,2439.6,3.4381]
[1728259982579,0.7301,2439.9,2439.7,0.32792]
[1728259982886,0.32791,2439.8,2439.7,0.32792]
[1728259983089,0.32792,2439.8,2439.6,3.76603]
[1728259985481,0.4022,2439.9,2439.6,3.4381]
[1728259985787,0.32792,2439.7,2439.6,3.4381]
[1728259985988,0.4022,2439.9,2439.6,3.76603]
[1728259986187,0.32791,2439.8,2439.6,0.55823]
[1728259988286,0.32791,2439.8,2439.7,0.32792]
[1728259988492,0.7301,2439.9,2439.7,0.32792]
[1728259988794,0.32791,2439.8,2439.7,0.32792]
[1728259989693,0.32792,2439.7,2439.6,0.2303]
[1728259989996,0.4022,2439.9,2439.6,0.2303]
[1728259990190,0.32791,2439.8,2439.6,0.55823]
[1728259993497,0.7301,2439.9,2439.7,0.32792]
[1728259993695,0.32791,2439.8,2439.7,0.32792]
[1728259994184,0.32791,2439.8,2439.6,0.55823]
[1728259994584,0.32791,2439.8,2439.7,0.32792]
[1728259994789,0.7301,2439.9,2439.7,0.32792]
[1728259995390,0.4022,2439.9,2439.6,0.2303]
[1728259995602,0.32791,2439.8,2439.6,0.55823]
[1728259995991,0.4097,2439.7,2439.6,0.55823]
[1728259996289,0.4097,2439.7,2439.6,0.32793]
[1728259999388,0.4097,2439.7,2439.6,0.85529889]
[1728260000300,0.73762,2439.7,2439.6,0.85529889]
[1728260000497,0.4097,2439.7,2439.6,0.85529889]
[1728260001896,0.4097,2439.7,2439.6,0.32793]
[1728260002200,0.4097,2439.7,2439.6,0.85556742]
[1728260002603,0.4022,2439.9,2439.7,0.32791]
[1728260002798,0.32791,2439.8,2439.7,0.32791]
[1728260003001,0.7301,2439.9,2439.8,0.32791]
[1728260003296,0.419,2440.0,2439.8,3.2]
[1728260003505,0.4165,2440.2,2440.1,0.32787]
[1728260003694,0.4128,2440.4,2440.3,0.32784]
[1728260003894,3.62,2440.5,2440.4,0.32783]
[1728260004100,3.2078,2440.5,2440.4,0.85539694]
[1728260004300,3.2078,2440.5,2440.4,0.32783]
[1728260004902,1.15711,2440.6,2440.4,0.32783]
[1728260004903,0.81945,2440.8,2440.4,0.32783]
[1728260005105,0.81945,2440.8,2440.5,3.2]
[1728260005301,0.3278,2440.6,2440.5,3.2]
[1728260005807,0.32778,2440.8,2440.6,0.32779]
[1728260006103,0.32778,2440.8,2440.5,3.2]
[1728260006104,0.32778,2440.8,2440.5,3.52781]
[1728260006497,0.32776,2440.9,2440.5,3.52781]
[1728260006700,1.2521,2441.0,2440.5,3.2]
[1728260007105,0.32778,2440.8,2440.5,3.2]
[1728260007305,0.32778,2440.8,2440.5,3.52781]
[1728260008416,0.32778,2440.8,2440.6,0.3278]
[1728260009102,0.32778,2440.8,2440.5,3.5278]
[1728260010109,0.32779,2440.7,2440.5,3.5278]
[1728260010623,1.2521,2441.0,2440.5,3.5278]
[1728260010826,0.32778,2440.8,2440.5,3.5278]
[1728260011630,1.2521,2441.0,2440.5,3.5278]
[1728260011924,0.3278,2440.6,2440.3,3.53563]
[1728260012126,1.17792,2440.5,2440.3,3.2078]
[1728260012322,1.56372,2440.5,2440.3,3.2078]
[1728260012728,0.32784,2440.3,2440.1,0.32786]
[1728260012922,0.32784,2440.3,2440.0,7.12747]
[1728260013225,0.32786,2440.2,2440.0,3.2]
[1728260013419,0.32785,2440.3,2440.0,3.2]
[1728260013616,1.2359,2440.5,2440.0,3.2]
[1728260013617,0.4275,2440.1,2440.0,3.52788]
[1728260016030,0.32786,2440.2,2440.0,3.52788]
[1728260016224,0.32785,2440.3,2440.1,0.32787]
[1728260016627,0.32784,2440.3,2440.1,0.32787]
[1728260016822,0.3897,2440.4,2440.3,0.32784]
[1728260017328,0.3897,2440.4,2440.2,3.52784]
[1728260018322,0.3897,2440.4,2440.2,3.2]
[1728260018523,0.3897,2440.4,2440.2,3.52784]
[1728260018717,0.3897,2440.4,2440.2,3.2]
[1728260018924,0.3897,2440.4,2440.2,3.52785]
[1728260019622,0.71753,2440.4,2440.2,3.2]
[1728260020635,0.3897,2440.4,2440.2,3.2]
[1728260020928,0.32784,2440.3,2440.2,3.2]
[1728260021833,0.71754,2440.4,2440.2,3.2]
[1728260022031,0.3897,2440.4,2440.2,3.2]
[1728260022228,0.32784,2440.3,2440.2,3.2]
[1728260022434,0.3897,2440.4,2440.2,3.2]
[1728260022635,0.71753,2440.4,2440.2,3.2]
[1728260023340,0.3897,2440.4,2440.2,3.2]
[1728260023632,0.71753,2440.4,2440.2,3.2]
[1728260024227,0.71753,2440.4,2440.2,3.52785]
[1728260024831,0.3897,2440.4,2440.2,3.2]
[1728260025235,0.3897,2440.4,2440.2,3.52784]
[1728260025431,0.71753,2440.4,2440.2,3.52784]
[1728260026134,0.71753,2440.4,2440.2,3.2]
[1728260026535,0.3897,2440.4,2440.2,3.2]
[1728260026734,0.32784,2440.3,2440.2,3.2]
[1728260029034,0.3897,2440.4,2440.2,3.2]
[1728260029035,0.3897,2440.4,2440.2,3.52785]
[1728260030242,0.71753,2440.4,2440.2,3.52785]
[1728260031339,0.32783,2440.4,2440.2,3.52785]
[1728260031742,0.32783,2440.4,2440.2,3.2]
[1728260032543,0.4226,2440.5,2440.2,3.2]
[1728260032544,0.32784,2440.3,2440.2,3.2]
[1728260038440,0.32784,2440.3,2440.2,1.48]
[1728260041653,0.4226,2440.5,2440.2,1.80785]
[1728260041840,0.75041,2440.5,2440.4,1.48]
[1728260043040,0.428,2440.6,2440.4,1.48]
[1728260043243,4.127,2440.7,2440.5,1.48]
[1728260043549,1.11687,2440.9,2440.7,0.32778]
[1728260043746,1.11687,2440.9,2440.8,1.48]
[1728260044739,0.7891,2440.9,2440.8,1.48]
[1728260045548,0.7891,2440.9,2440.8,1.80777]
[1728260045952,0.389,2440.9,2440.8,1.80777]
[1728260046148,0.71355,2441.0,2440.8,1.80777]
[1728260046657,0.3858,2441.0,2440.8,1.80777]
[1728260046854,0.71355,2441.0,2440.8,1.80777]
[1728260047651,0.3858,2441.0,2440.8,1.48]
[1728260047951,0.71355,2441.0,2440.8,1.80777]
[1728260048143,0.32776,2440.9,2440.8,1.48]
[1728260049148,0.71355,2441.0,2440.8,1.80777]
[1728260050459,0.71355,2441.0,2440.8,1.48]
[1728260050650,0.32776,2440.9,2440.8,1.48]
[1728260050848,0.3858,2441.0,2440.8,1.48]
[1728260051047,0.71355,2441.0,2440.8,1.48]
[1728260051552,0.32776,2440.9,2440.8,1.48]
[1728260051860,0.3858,2441.0,2440.8,1.48]
[1728260052051,0.32776,2440.9,2440.8,1.48]
[1728260052548,0.7993,2441.1,2440.8,1.48]
[1728260052851,1.12703,2441.1,2441.0,1.48]
[1728260053552,9.49491599,2441.3,2441.0,1.80775]
[1728260053553,0.32771,2441.3,2441.0,1.80775]
[1728260053852,0.096,2441.4,2441.3,0.32771]
[1728260053853,0.8026,2441.4,2441.3,0.32771]
[1728260054056,0.8026,2441.4,2441.2,1.80771]
[1728260054349,0.8026,2441.4,2441.2,2.61791]
[1728260054856,3.3038,2441.9,2441.3,0.32771]
[1728260055062,0.8324,2441.7,2441.3,0.32771]
[1728260055351,0.8324,2441.7,2441.5,1.48]
[1728260055547,0.8324,2441.7,2441.2,0.8102]
[1728260055548,0.32769,2441.5,2441.4,1.48]
[1728260055855,0.3277,2441.4,2441.2,1.48]
[1728260056047,0.8324,2441.3,2441.2,1.48]
[1728260056449,1.16011,2441.3,2441.2,1.48]
[1728260058157,0.8324,2441.3,2441.2,1.48]
[1728260058452,1.16011,2441.3,2441.2,3.2]
[1728260059656,0.8324,2441.3,2441.2,3.2]
[1728260059858,0.32767,2441.6,2441.3,0.3277]
[1728260060056,1.17556,2441.7,2441.5,3.2]
[1728260060656,0.32767,2441.6,2441.5,3.2]
[1728260061671,0.8479,2441.7,2441.5,3.52767]
[1728260061956,0.8479,2441.7,2441.4,0.4138]
[1728260061957,0.32765,2441.7,2441.6,3.2]
[1728260069967,0.73295,2441.8,2441.6,3.2]
[1728260070162,0.73295,2441.8,2441.6,3.52767]
[1728260070757,0.4053,2441.8,2441.7,0.32765]
[1728260071369,0.8322,2441.9,2441.7,0.32765]
[1728260071570,0.8322,2441.9,2441.7,0.32764]
[1728260071966,0.7518,2442.1,2441.8,6.4078]
[1728260072173,1.147,2442.1,2442.0,3.2]
[1728260075577,1.147,2442.1,2441.8,3.53543]
[1728260075578,0.8194,2442.1,2441.9,3.2]
[1728260075778,0.32761,2442.0,2441.9,3.2]
[1728260077867,1.14701,2442.1,2441.9,3.2]
[1728260078369,1.14701,2442.1,2442.0,1.48]
[1728260080370,0.8194,2442.1,2442.0,1.48]
[1728260080572,0.4279,2442.2,2442.0,1.48]
[1728260080772,0.4279,2442.2,2442.1,0.3276]
[1728260081171,0.4279,2442.3,2442.0,1.48]
[1728260081371,0.4279,2442.3,2441.9,1.242]
[1728260081372,0.4279,2442.3,2442.2,1.80758]
[1728260081672,4.0065,2442.4,2442.3,0.32757]
[1728260082478,4.0065,2442.4,2442.3,3.52757]
[1728260082774,3.5943,2442.4,2442.3,3.2]
[1728260082980,3.5943,2442.4,2442.3,3.52757]
[1728260086474,0.3865,2442.4,2442.3,3.52757]
[1728260087584,0.71406,2442.4,2442.3,3.2]
[1728260087973,0.3865,2442.4,2442.3,3.52757]
[1728260091185,1.17224,2442.6,2442.3,3.2]
[1728260091392,1.17224,2442.6,2442.4,0.32755]
[1728260092689,0.8447,2442.6,2442.4,0.32755]
[1728260092890,0.8447,2442.6,2442.1,3.2078]
[1728260092891,0.8447,2442.6,2442.5,3.52754]
[1728260093089,0.8447,2442.6,2442.5,3.2]
[1728260093294,0.8447,2442.6,2442.5,3.52754]
[1728260093588,0.096,2442.9,2442.8,0.3275]
[1728260093791,0.3959,2443.0,2442.9,0.32749]
[1728260093994,0.4277,2443.2,2443.0,3.52747]
[1728260093995,0.8141,2443.2,2443.0,3.52747]
[1728260094289,0.4092,2443.3,2443.1,7.3006]
[1728260094487,0.4092,2443.3,2443.2,7.62025]
[1728260094788,0.4092,2443.3,2443.2,3.52745]
[1728260094985,0.4092,2443.3,2443.2,7.62025]
[1728260095584,0.8141,2443.6,2443.2,7.2928]
[1728260095899,1.2233,2443.6,2443.4,3.2]
[1728260096388,0.8369,2443.6,2443.4,3.52742]
[1728260096596,0.8369,2443.6,2443.4,3.2]
[1728260096995,3.2078,2443.7,2443.4,3.2]
[1728260097195,3.2078,2443.7,2443.6,3.2]
[1728260097391,3.2078,2443.7,2443.6,3.5274]
[1728260097597,0.096,2444.2,2443.8,0.32736]
[1728260097598,0.32733,2444.1,2443.8,0.32736]
[1728260097799,0.32733,2444.1,2443.9,3.2]
[1728260098008,0.73752,2444.2,2443.9,3.52736]
[1728260098207,0.32731,2444.3,2444.1,3.2]
[1728260098412,0.32731,2444.3,2444.2,3.2]
[1728260099097,0.801,2444.4,2443.7,5.3699]
[1728260099098,0.32733,2444.1,2444.0,3.2]
[1728260099294,0.32732,2444.2,2444.0,3.2]
[1728260099507,0.32732,2444.2,2444.1,3.2]
[1728260100207,0.096,2444.5,2444.1,3.2]
[1728260100501,0.32731,2444.3,2444.1,3.2]
[1728260100702,0.8277,2444.4,2444.2,3.2]
[1728260100901,0.8277,2444.4,2444.1,3.2]
[1728260101101,10.0355,2444.4,2443.7,3.2]
[1728260101303,10.0355,2444.4,2443.5,3.2]
[1728260101304,0.3274,2443.6,2443.5,3.2]
[1728260104811,0.32742,2443.4,2443.3,3.2]
[1728260105505,0.32742,2443.5,2443.3,3.2]
[1728260106312,1.2444,2443.8,2443.3,3.2]
[1728260106508,1.2444,2443.8,2443.5,3.2]
[1728260106708,0.3274,2443.6,2443.5,3.2]
[1728260106908,3.2078,2443.6,2443.3,3.2]
[1728260107113,0.32745,2443.2,2443.1,3.2]
[1728260108008,3.2078,2443.6,2443.1,3.2]
[1728260108315,0.92939,2444.0,2443.4,3.2]
[1728260108316,0.32741,2443.5,2443.4,3.2]
[1728260109614,4.02633,2443.6,2443.2,3.2]
[1728260109810,0.32744,2443.3,2443.2,3.2]
[1728260110115,4.02633,2443.6,2443.0,3.2]
[1728260110312,0.32748,2443.1,2443.0,3.2]
[1728260110819,0.3275,2442.9,2442.8,3.2]
[1728260111117,0.4249,2443.1,2442.8,3.2]
[1728260111318,0.32749,2442.9,2442.8,3.2]
[1728260112318,0.32752,2442.7,2442.6,3.2]
[1728260112712,0.32754,2442.5,2442.4,3.2]
[1728260113108,0.8128,2442.6,2442.4,3.2]
[1728260113311,0.3275,2442.9,2442.6,0.32753]
[1728260113614,0.4027,2443.0,2442.8,3.2]
[1728260113913,0.32749,2442.9,2442.8,3.2]
[1728260114214,1.22141,2443.0,2442.6,3.2]
[1728260114407,0.81874,2442.9,2442.5,3.2]
[1728260114604,0.32753,2442.6,2442.5,3.2]
[1728260115912,0.4027,2443.0,2442.5,3.2]
[1728260116112,0.4027,2443.0,2442.7,3.2]
[1728260116113,0.3275,2442.8,2442.7,3.2]
[1728260116926,0.32752,2442.7,2442.6,3.2]
[1728260128116,4.0936,2442.7,2442.4,3.2]
[1728260128325,4.0936,2442.7,2441.8,0.4253]
[1728260128326,8.121,2442.6,2441.9,4.1208]
[1728260128521,0.32761,2442.0,2441.9,3.2]
[1728260129320,4.02674,2442.3,2441.7,3.2]
[1728260129321,0.81897,2442.2,2441.7,3.2]
[1728260129527,0.32764,2441.8,2441.7,3.2]
[1728260129727,0.3886,2441.9,2441.7,3.2]
[1728260129913,0.32764,2441.8,2441.7,3.2]
[1728260130324,0.3886,2441.9,2441.7,3.2]
[1728260130519,0.71623,2441.9,2441.7,3.2]
[1728260131617,0.91488,2442.5,2441.8,4.0952]
[1728260131817,0.32758,2442.3,2442.0,0.3276]
[1728260132018,0.32758,2442.3,2442.1,0.3862]
[1728260132215,0.32758,2442.3,2442.1,0.7872]
[1728260132627,0.3918,2442.5,2442.2,3.2]
[1728260132924,0.32755,2442.5,2442.4,3.2]
[1728260137031,0.32756,2442.4,2442.3,3.2]
[1728260143724,0.32755,2442.5,2442.3,3.2]
[1728260144328,0.7997,2442.6,2442.3,3.2]
[1728260144624,0.32756,2442.4,2442.3,3.2]
[1728260147829,1.61855,2442.6,2442.3,3.2]
[1728260147830,0.7997,2442.6,2442.3,3.2]
[1728260148237,1.12724,2442.6,2442.3,3.52757]
[1728260148441,0.7997,2442.6,2442.3,3.2]
[1728260148737,0.32755,2442.5,2442.3,3.2]
[1728260149139,1.12724,2442.6,2442.3,3.52757]
[1728260149337,0.32755,2442.5,2442.3,3.52757]
[1728260149637,0.32755,2442.5,2442.3,3.2]
[1728260150232,0.32754,2442.5,2442.3,3.2]
[1728260150431,0.32754,2442.5,2442.3,3.4303]
[1728260150735,0.32756,2442.4,2442.3,3.4303]
[1728260153144,0.32756,2442.5,2442.3,3.4303]
[1728260154431,1.12724,2442.6,2442.3,3.75786]
[1728260154737,0.32755,2442.5,2442.3,3.4303]
[1728260156741,1.12724,2442.6,2442.3,3.75786]
[1728260156944,0.3275,2442.9,2442.7,0.32751]
[1728260157134,5.14120562,2443.3,2443.0,0.32748]
[1728260157336,5.64026562,2443.3,2443.1,3.2]
[1728260157608,1.15394,2443.3,2443.1,3.2]
[1728260160688,0.8265,2443.3,2443.1,3.2]
[1728260160881,0.8265,2443.3,2443.1,3.91736]
[1728260161170,0.81849,2443.7,2443.1,3.5899]
[1728260161375,0.32742,2443.5,2443.4,3.2]
[1728260161565,0.84,2443.6,2443.4,3.2]
[1728260161879,0.42336,2444.0,2443.6,0.32739]
[1728260162175,0.207,2444.3,2443.9,3.2]
[1728260162379,0.4176,2444.3,2444.2,3.2]
[1728260162881,8.35992,2444.8,2444.3,0.3273]
[1728260162882,0.32726,2444.7,2444.3,0.3273]